[Event "POL-chT 2 Liga 2019"]
[Site "Poronin"]
[Date "2019.09.08"]
[Round "2.11"]
[White "Chmielarz, Maciej"]
[Black "Sendera, Jaroslaw"]
[Result "0-1"]
[ECO "E83"]
[WhiteElo "2008"]
[BlackElo "2203"]
[Annotator "NA"]
[PlyCount "116"]
[EventDate "2019.09.07"]
[EventType "team-tourn"]
[EventCountry "POL"]
[SourceTitle "playchess.com"]
[Source "ChessBase"]
[SourceQuality "1"]
[TimeControl "40/5400+30:1800+30"]

1. d4 {[%emt 0:00:00]} Nf6 {[%emt 0:00:00]} 2. c4 {[%emt 0:00:00]} g6 {[%emt 0:00:01]} 3. Nc3 {[%emt 0:00:00]} Bg7 {[%emt 0:00:06]} 4. e4 {[%emt 0:00:00]} d6 {[%emt 0:00:31]} 5. f3 {[%emt 0:00:00]} O-O {[%emt 0:02:27]} 6. Be3 {[%emt 0:00:00]} Nc6 {[%emt 0:08:05]} 7. Bd3 {[%emt 0:00:02]} e5 {[%emt 0:05:21]} 8. d5 {[%emt 0:00:04]} Nd4 {[%emt 0:00:50]} 9. Nge2 {[%emt 0:00:05]} Nh5 {[%emt 0:04:00]} 10. Qd2 {[%emt 0:03:37]} c5 {[%emt 0:04:56]} 11. Ng3 {[%emt 0:16:01]} Nf4 {[%emt 0:19:27]} 12. Bxf4 {[%emt 0:01:40]} exf4 {[%emt 0:00:07]} 13. Qxf4 {[%emt 0:00:08]} Be5 {[%emt 0:12:35]} 14. Qd2 {[%emt 0:09:47]} Qh4 {[%emt 0:00:13]} 15. Qf2 {[%emt 0:03:15]} Qh6 {[%emt 0:02:17]} 16. Nge2 {[%emt 0:11:31]} f5 {[%emt 0:07:31]} 17. Nxd4 {[%emt 0:04:31]} Bxd4 {[%emt 0:09:00]} 18. Qd2 {[%emt 0:09:22]} Be3 {[%emt 0:01:05]} 19. Qe2 {[%emt 0:00:37]} Bd7 {[%emt 0:01:18]} 20. Kd1 {[%emt 0:02:11]} a6 {[%emt 0:01:25]} 21. Kc2 {[%emt 0:06:46]} Bd4 {[%emt 0:00:42]} 22. Qd2 {[%emt 0:05:35]} Qg7 {[%emt 0:00:22]} 23. a4 {[%emt 0:02:29]} f4 {[%emt 0:05:33]} 24. Rhb1 {[%emt 0:06:27]} Rab8 {[%emt 0:01:54]} 25. b4 {[%emt 0:03:30]} cxb4 {[%emt 0:01:29]} 26. Rxb4 {[%emt 0:00:05]} Rfc8 {[%emt 0:00:22]} 27. a5 {[%emt 0:03:50]} Rc7 {[%emt 0:02:59]} 28. Ra2 {[%emt 0:02:41]} Rbc8 {[%emt 0:00:57]} 29. Rb3 {[%emt 0:07:16]} Be3 {[%emt 0:04:30]} 30. Qe2 {[%emt 0:01:20]} Qd4 {[%emt 0:00:46]} 31. Rb4 {[%emt 0:01:31]} Bb5 {[%emt 0:01:17]} 32. Nxb5 {[%emt 0:00:41]} axb5 {[%emt 0:00:11]} 33. Kb3 {[%emt 0:00:45]} bxc4+ {[%emt 0:01:33]} 34. Rxc4 {[%emt 0:00:01]} Rxc4 {[%emt 0:01:27]} 35. Bxc4 {[%emt 0:00:01]} b5 {[%emt 0:00:09]} 36. axb6 {[%emt 0:01:16]} Qxb6+ {[%emt 0:00:02]} 37. Kc3 {[%emt 0:00:54]} Qd4+ {[%emt 0:01:00]} 38. Kb3 {[%emt 0:00:01]} Rb8+ {[%emt 0:00:46]} 39. Bb5 {[%emt 0:00:26]} Qc5 {[%emt 0:00:19]} 40. Ka4 {[%emt 0:00:00]} Qc3 {[%emt 0:00:00]} 41. Ra3 {[%emt 0:13:49]} Qd4+ {[%emt 0:25:19]} 42. Qc4 {[%emt 0:00:06]} Qa7+ {[%emt 0:00:32]} 43. Kb3 {[%emt 0:01:11]} Qb6 {[%emt 0:00:14]} 44. Ka4 {[%emt 0:04:55]} Bd2 {[%emt 0:01:25]} 45. Kb3 {[%emt 0:10:11]} Qxb5+ {[%emt 0:00:10]} 46. Qxb5 {[%emt 0:00:01]} Rxb5+ {[%emt 0:00:11]} 47. Kc4 {[%emt 0:00:55]} Rb2 {[%emt 0:01:04]} 48. e5 {[%emt 0:02:12]} dxe5 {[%emt 0:00:49]} 49. d6 {[%emt 0:00:04]} Kf7 {[%emt 0:01:20]} 50. Kd5 {[%emt 0:00:49]} Bb4 {[%emt 0:01:48]} 51. Ra7+ {[%emt 0:00:05]} Kf6 {[%emt 0:00:16]} 52. d7 {[%emt 0:01:55]} Rd2+ {[%emt 0:00:26]} 53. Kc6 {[%emt 0:00:35]} Be7 {[%emt 0:00:18]} 54. Kc7 {[%emt 0:01:14]} Rc2+ {[%emt 0:00:39]} 55. Kb8 {[%emt 0:00:24]} Rxg2 {[%emt 0:00:23]} 56. Ra6+ {[%emt 0:00:27]} Kf7 {[%emt 0:00:25]} 57. Rc6 {[%emt 0:00:20]} Rxh2 {[%emt 0:00:45]} 58. Kc8 {[%emt 0:00:49]} Rd2 {[%emt 0:00:15]} 0-1

[Event "POL-chT 2 Liga 2019"]
[Site "Poronin"]
[Date "2019.09.08"]
[Round "2.12"]
[White "Trybowska, Barbara"]
[Black "Czerwinska, Milena"]
[Result "1/2-1/2"]
[ECO "B98"]
[WhiteElo "1689"]
[BlackElo "2006"]
[Annotator "NA"]
[PlyCount "47"]
[EventDate "2019.09.07"]
[EventType "team-tourn"]
[EventCountry "POL"]
[SourceTitle "playchess.com"]
[Source "ChessBase"]
[SourceQuality "1"]
[TimeControl "40/5400+30:1800+30"]

1. e4 {[%emt 0:00:00]} c5 {[%emt 0:00:00]} 2. Nf3 {[%emt 0:00:00]} d6 {[%emt 0:00:00]} 3. d4 {[%emt 0:00:00]} cxd4 {[%emt 0:00:00]} 4. Nxd4 {[%emt 0:00:00]} Nf6 {[%emt 0:00:00]} 5. Nc3 {[%emt 0:00:00]} a6 {[%emt 0:00:00]} 6. Bg5 {[%emt 0:00:05]} e6 {[%emt 0:00:04]} 7. f4 {[%emt 0:00:11]} h6 {[%emt 0:06:35]} 8. Bh4 {[%emt 0:00:33]} Be7 {[%emt 0:03:40]} 9. Qf3 {[%emt 0:04:30]} Qc7 {[%emt 0:07:55]} 10. O-O-O {[%emt 0:13:17]} Nbd7 {[%emt 0:12:11]} 11. g4 {[%emt 0:19:20]} g5 {[%emt 0:38:57]} 12. fxg5 {[%emt 0:12:20]} Ne5 {[%emt 0:00:25]} 13. Qg3 {[%emt 0:04:22]} Nfxg4 {[%emt 0:04:26]} 14. gxh6 {[%emt 0:09:31]} Rxh6 {[%emt 0:01:28]} 15. Bxe7 {[%emt 0:05:47]} Qxe7 {[%emt 0:00:39]} 16. Be2 {[%emt 0:01:13]} Qh4 {[%emt 0:06:45]} 17. Bxg4 {[%emt 0:11:41]} Qxg4 {[%emt 0:03:11]} 18. Nb3 {[%emt 0:02:02]} Qxg3 {[%emt 0:02:38]} 19. hxg3 {[%emt 0:00:11]} Rxh1 {[%emt 0:00:09]} 20. Rxh1 {[%emt 0:00:04]} Ng6 {[%emt 0:02:44]} 21. Rd1 {[%emt 0:06:14]} Ke7 {[%emt 0:01:04]} 22. Na4 {[%emt 0:01:38]} b5 {[%emt 0:01:05]} 23. Nc3 {[%emt 0:01:54]} Bb7 {[%emt 0:03:03]} 24. Na5 {[%emt 0:00:21]} 1/2-1/2

[Event "POL-chT 2 Liga 2019"]
[Site "Poronin"]
[Date "2019.09.08"]
[Round "2.13"]
[White "Lewicki, Miroslaw"]
[Black "Brzezinski, Mateusz"]
[Result "1-0"]
[ECO "B72"]
[WhiteElo "2351"]
[BlackElo "2213"]
[Annotator "NA"]
[PlyCount "88"]
[EventDate "2019.09.07"]
[EventType "team-tourn"]
[EventCountry "POL"]
[SourceTitle "playchess.com"]
[Source "ChessBase"]
[SourceQuality "1"]
[TimeControl "40/5400+30:1800+30"]

1. e4 {[%emt 0:00:00]} c5 {[%emt 0:00:00]} 2. Nf3 {[%emt 0:00:00]} d6 {[%emt 0:00:00]} 3. d4 {[%emt 0:00:00]} cxd4 {[%emt 0:00:00]} 4. Nxd4 {[%emt 0:00:00]} Nf6 {[%emt 0:00:00]} 5. Nc3 {[%emt 0:00:00]} g6 {[%emt 0:00:05]} 6. Be2 {[%emt 0:00:24]} Bg7 {[%emt 0:00:09]} 7. Be3 {[%emt 0:00:05]} O-O {[%emt 0:00:09]} 8. g4 {[%emt 0:02:47]} d5 {[%emt 0:10:45]} 9. e5 {[%emt 0:02:23]} Ne4 {[%emt 0:04:35]} 10. Nxe4 {[%emt 0:00:05]} dxe4 {[%emt 0:00:09]} 11. e6 {[%emt 0:00:05]} Bxe6 {[%emt 0:04:12]} 12. Nxe6 {[%emt 0:00:21]} fxe6 {[%emt 0:00:43]} 13. c3 {[%emt 0:01:08]} Nc6 {[%emt 0:04:53]} 14. Qa4 {[%emt 0:02:15]} Qa5 {[%emt 0:14:04]} 15. Qxa5 {[%emt 0:00:06]} Nxa5 {[%emt 0:00:06]} 16. O-O-O {[%emt 0:00:04]} Nc6 {[%emt 0:14:21]} 17. Rd7 {[%emt 0:00:22]} b6 {[%emt 0:02:08]} 18. Rhd1 {[%emt 0:01:06]} Kf7 {[%emt 0:04:51]} 19. Rc7 {[%emt 0:12:44]} Rfc8 {[%emt 0:04:45]} 20. Rdd7 {[%emt 0:00:31]} Rxc7 {[%emt 0:13:58]} 21. Rxc7 {[%emt 0:00:07]} Ne5 {[%emt 0:04:00]} 22. Kc2 {[%emt 0:00:53]} Nd3 {[%emt 0:00:46]} 23. Rc4 {[%emt 0:05:46]} Rd8 {[%emt 0:02:32]} 24. Rxe4 {[%emt 0:01:24]} Ne1+ {[%emt 0:00:13]} 25. Kb3 {[%emt 0:00:42]} Ng2 {[%emt 0:00:06]} 26. Bc1 {[%emt 0:02:23]} h6 {[%emt 0:04:08]} 27. Bc4 {[%emt 0:02:55]} Rd6 {[%emt 0:00:05]} 28. f4 {[%emt 0:00:05]} Nh4 {[%emt 0:02:09]} 29. Kb4 {[%emt 0:03:09]} Rd1 {[%emt 0:05:34]} 30. Rxe6 {[%emt 0:00:42]} Kf8 {[%emt 0:00:20]} 31. Be3 {[%emt 0:01:19]} Ng2 {[%emt 0:00:10]} 32. Bb3 {[%emt 0:10:28]} Rh1 {[%emt 0:03:38]} 33. Bd2 {[%emt 0:01:41]} Rf1 {[%emt 0:00:08]} 34. Rc6 {[%emt 0:00:16]} Bf6 {[%emt 0:00:11]} 35. g5 {[%emt 0:00:22]} hxg5 {[%emt 0:00:04]} 36. fxg5 {[%emt 0:00:06]} Be5 {[%emt 0:00:04]} 37. Rxg6 {[%emt 0:00:35]} Ke8 {[%emt 0:01:11]} 38. Kb5 {[%emt 0:04:06]} Kd7 {[%emt 0:00:19]} 39. Re6 {[%emt 0:00:13]} Rf5 {[%emt 0:01:22]} 40. Ka6 {[%emt 0:00:00]} Bf4 {[%emt 0:00:00]} 41. Re2 {[%emt 0:03:54]} Kc6 {[%emt 0:04:10]} 42. Ba4+ {[%emt 0:00:36]} b5 {[%emt 0:00:18]} 43. Rxg2 {[%emt 0:01:38]} Bxd2 {[%emt 0:02:33]} 44. Bc2 {[%emt 0:00:14]} Kd5 1-0

[Event "POL-chT 2 Liga 2019"]
[Site "Poronin"]
[Date "2019.09.08"]
[Round "2.15"]
[White "Mis, Mieszko"]
[Black "Lewinski, Dominik"]
[Result "1-0"]
[ECO "D30"]
[WhiteElo "2320"]
[BlackElo "2260"]
[Annotator "NA"]
[PlyCount "59"]
[EventDate "2019.09.07"]
[EventType "team-tourn"]
[EventCountry "POL"]
[SourceTitle "playchess.com"]
[Source "ChessBase"]
[SourceQuality "1"]
[TimeControl "40/5400+30:1800+30"]

1. d4 {[%emt 0:00:00]} d5 {[%emt 0:00:15]} 2. c4 {[%emt 0:00:00]} e6 {[%emt 0:01:03]} 3. Nf3 {[%emt 0:00:16]} Nf6 {[%emt 0:00:09]} 4. g3 {[%emt 0:00:05]} c6 {[%emt 0:05:13]} 5. Bg2 {[%emt 0:00:08]} Be7 {[%emt 0:00:14]} 6. O-O {[%emt 0:00:46]} O-O {[%emt 0:00:28]} 7. Nc3 {[%emt 0:01:03]} Nbd7 {[%emt 0:01:17]} 8. Nd2 {[%emt 0:00:42]} Re8 {[%emt 0:36:59]} 9. e4 {[%emt 0:04:17]} dxe4 {[%emt 0:00:48]} 10. Ndxe4 {[%emt 0:00:26]} Nxe4 {[%emt 0:02:09]} 11. Nxe4 {[%emt 0:00:16]} Nf6 {[%emt 0:04:35]} 12. Nc3 {[%emt 0:01:52]} Bd6 {[%emt 0:09:47]} 13. Re1 {[%emt 0:01:11]} Bd7 {[%emt 0:01:46]} 14. Bg5 {[%emt 0:02:51]} h6 {[%emt 0:01:31]} 15. Ne4 {[%emt 0:02:02]} Be7 {[%emt 0:01:24]} 16. Bxf6 {[%emt 0:00:10]} Bxf6 {[%emt 0:03:26]} 17. Nd6 {[%emt 0:01:18]} Re7 {[%emt 0:04:21]} 18. c5 {[%emt 0:06:59]} Be8 {[%emt 0:02:13]} 19. Qg4 {[%emt 0:02:04]} Rd7 {[%emt 0:01:38]} 20. Rad1 {[%emt 0:03:42]} Be7 {[%emt 0:01:07]} 21. Nc4 {[%emt 0:01:57]} Bf6 {[%emt 0:00:56]} 22. Ne5 {[%emt 0:04:48]} Bxe5 {[%emt 0:01:24]} 23. dxe5 {[%emt 0:01:02]} Qa5 {[%emt 0:00:20]} 24. b4 {[%emt 0:00:59]} Qxa2 {[%emt 0:01:12]} 25. Rxd7 {[%emt 0:00:10]} Bxd7 {[%emt 0:00:02]} 26. Qd4 {[%emt 0:00:05]} Be8 {[%emt 0:00:39]} 27. Qc3 {[%emt 0:00:48]} a6 {[%emt 0:01:22]} 28. Ra1 {[%emt 0:00:48]} Qe2 {[%emt 0:00:14]} 29. Bf3 {[%emt 0:00:09]} Qb5 {[%emt 0:01:30]} 30. Ra5 {[%emt 0:00:27]} 1-0

[Event "POL-chT 2 Liga 2019"]
[Site "Poronin"]
[Date "2019.09.08"]
[Round "2.16"]
[White "Mazalon, Mariusz"]
[Black "Szpar, Milosz"]
[Result "1/2-1/2"]
[ECO "E15"]
[WhiteElo "1983"]
[BlackElo "2309"]
[Annotator "NA"]
[PlyCount "78"]
[EventDate "2019.09.07"]
[EventType "team-tourn"]
[EventCountry "POL"]
[SourceTitle "playchess.com"]
[Source "ChessBase"]
[SourceQuality "1"]
[TimeControl "40/5400+30:1800+30"]

1. d4 {[%emt 0:00:00]} Nf6 {[%emt 0:00:00]} 2. c4 {[%emt 0:00:00]} e6 {[%emt 0:00:00]} 3. Nf3 {[%emt 0:00:34]} b6 {[%emt 0:01:10]} 4. g3 {[%emt 0:00:29]} Ba6 {[%emt 0:00:38]} 5. b3 {[%emt 0:00:40]} Bb4+ {[%emt 0:00:32]} 6. Bd2 {[%emt 0:00:21]} Be7 {[%emt 0:00:11]} 7. Bg2 {[%emt 0:00:06]} O-O {[%emt 0:00:21]} 8. O-O {[%emt 0:00:12]} d5 {[%emt 0:00:15]} 9. Ne5 {[%emt 0:10:23]} Bb7 {[%emt 0:03:47]} 10. Nc3 {[%emt 0:07:43]} Nbd7 {[%emt 0:01:50]} 11. Bf4 {[%emt 0:04:27]} c5 {[%emt 0:02:17]} 12. cxd5 {[%emt 0:01:42]} exd5 {[%emt 0:02:20]} 13. Rc1 {[%emt 0:01:50]} Re8 {[%emt 0:05:00]} 14. Nxd7 {[%emt 0:07:18]} Qxd7 {[%emt 0:00:26]} 15. Be5 {[%emt 0:03:32]} Ng4 {[%emt 0:03:57]} 16. Bh3 {[%emt 0:07:07]} f5 {[%emt 0:02:21]} 17. Bxg4 {[%emt 0:01:49]} fxg4 {[%emt 0:00:08]} 18. f4 {[%emt 0:01:23]} gxf3 {[%emt 0:08:00]} 19. exf3 {[%emt 0:03:08]} Bd6 {[%emt 0:11:13]} 20. f4 {[%emt 0:02:48]} Bxe5 {[%emt 0:05:23]} 21. fxe5 {[%emt 0:00:32]} Rac8 {[%emt 0:09:53]} 22. Qd2 {[%emt 0:03:31]} Re6 {[%emt 0:05:37]} 23. Rcd1 {[%emt 0:03:45]} cxd4 {[%emt 0:07:20]} 24. Qxd4 {[%emt 0:00:29]} Qc7 {[%emt 0:02:56]} 25. Nxd5 {[%emt 0:04:35]} Qxe5 {[%emt 0:00:33]} 26. Nf4 {[%emt 0:01:39]} Qxd4+ {[%emt 0:01:08]} 27. Rxd4 {[%emt 0:00:02]} Re7 {[%emt 0:03:01]} 28. Rfd1 {[%emt 0:01:01]} Rce8 {[%emt 0:11:11]} 29. Rd8 {[%emt 0:01:51]} Kf7 {[%emt 0:02:45]} 30. Rxe8 {[%emt 0:00:32]} Kxe8 {[%emt 0:00:35]} 31. Kf2 {[%emt 0:02:03]} Rc7 {[%emt 0:00:29]} 32. Rd2 {[%emt 0:01:44]} Kf7 {[%emt 0:00:54]} 33. h4 {[%emt 0:07:03]} Kf6 {[%emt 0:01:57]} 34. g4 {[%emt 0:06:05]} Ke5 {[%emt 0:02:43]} 35. Ke3 {[%emt 0:01:41]} h6 {[%emt 0:03:22]} 36. Nd3+ {[%emt 0:02:03]} Ke6 {[%emt 0:01:26]} 37. Nf4+ {[%emt 0:00:42]} Ke5 {[%emt 0:00:04]} 38. Nd3+ {[%emt 0:00:05]} Ke6 {[%emt 0:01:47]} 39. Nf4+ {[%emt 0:00:23]} Ke5 {[%emt 0:01:08]} 1/2-1/2

[Event "POL-chT 2 Liga 2019"]
[Site "Poronin"]
[Date "2019.09.08"]
[Round "2.17"]
[White "Mika, Tomasz"]
[Black "Skowronski, Piotr"]
[Result "1-0"]
[ECO "D00"]
[WhiteElo "2136"]
[BlackElo "2002"]
[Annotator "NA"]
[PlyCount "119"]
[EventDate "2019.09.07"]
[EventType "team-tourn"]
[EventCountry "POL"]
[SourceTitle "playchess.com"]
[Source "ChessBase"]
[SourceQuality "1"]
[TimeControl "40/5400+30:1800+30"]

1. d4 {[%emt 0:00:00]} d5 {[%emt 0:00:35]} 2. Nc3 {[%emt 0:00:00]} e6 {[%emt 0:02:36]} 3. Bf4 {[%emt 0:00:20]} Bd6 {[%emt 0:01:46]} 4. e3 {[%emt 0:00:35]} Bxf4 {[%emt 0:00:30]} 5. exf4 {[%emt 0:00:05]} Nf6 {[%emt 0:00:57]} 6. Nf3 {[%emt 0:00:32]} Nbd7 {[%emt 0:01:39]} 7. Ne5 {[%emt 0:04:05]} a6 {[%emt 0:03:37]} 8. Be2 {[%emt 0:06:42]} c5 {[%emt 0:01:33]} 9. dxc5 {[%emt 0:04:17]} Nxc5 {[%emt 0:01:03]} 10. Qd4 {[%emt 0:01:07]} Qc7 {[%emt 0:05:25]} 11. O-O {[%emt 0:04:23]} O-O {[%emt 0:00:55]} 12. Bf3 {[%emt 0:01:32]} b6 {[%emt 0:04:05]} 13. f5 {[%emt 0:07:49]} Bb7 {[%emt 0:08:19]} 14. Rfe1 {[%emt 0:07:32]} Rad8 {[%emt 0:07:33]} 15. Ng4 {[%emt 0:09:29]} Nxg4 {[%emt 0:05:10]} 16. Bxg4 {[%emt 0:00:18]} exf5 {[%emt 0:01:41]} 17. Bxf5 {[%emt 0:02:15]} g6 {[%emt 0:23:11]} 18. Bh3 {[%emt 0:15:28]} Ne4 {[%emt 0:08:33]} 19. Re3 {[%emt 0:03:22]} f5 {[%emt 0:01:32]} 20. Rd1 {[%emt 0:03:58]} Qc5 {[%emt 0:04:51]} 21. g3 {[%emt 0:02:52]} Qxd4 {[%emt 0:02:36]} 22. Rxd4 {[%emt 0:00:09]} Kf7 {[%emt 0:00:27]} 23. Bg2 {[%emt 0:05:23]} Rfe8 {[%emt 0:01:47]} 24. Na4 {[%emt 0:04:22]} b5 {[%emt 0:00:41]} 25. Nc3 {[%emt 0:01:37]} Nf6 {[%emt 0:03:01]} 26. Rxe8 {[%emt 0:01:32]} Kxe8 {[%emt 0:00:02]} 27. a4 {[%emt 0:05:45]} bxa4 {[%emt 0:02:21]} 28. Rxa4 {[%emt 0:00:07]} Ne4 {[%emt 0:00:36]} 29. Ne2 {[%emt 0:00:44]} Ke7 {[%emt 0:01:25]} 30. Nd4 {[%emt 0:00:40]} Rc8 {[%emt 0:01:18]} 31. c3 {[%emt 0:00:07]} Rc4 {[%emt 0:00:55]} 32. Ra1 {[%emt 0:00:52]} Rc8 {[%emt 0:00:30]} 33. Ra5 {[%emt 0:02:55]} Kd6 {[%emt 0:00:08]} 34. Bf1 {[%emt 0:01:52]} Ra8 {[%emt 0:00:08]} 35. Ra1 {[%emt 0:00:45]} Nc5 {[%emt 0:00:43]} 36. Re1 {[%emt 0:00:38]} Kd7 {[%emt 0:01:55]} 37. f3 {[%emt 0:00:42]} Re8 {[%emt 0:00:59]} 38. Ra1 {[%emt 0:00:13]} Ra8 {[%emt 0:00:51]} 39. Re1 {[%emt 0:00:01]} Re8 {[%emt 0:00:17]} 40. Ra1 {[%emt 0:00:00]} Ra8 {[%emt 0:00:00]} 41. Kf2 {[%emt 0:02:06]} Ne6 {[%emt 0:03:10]} 42. Nxe6 {[%emt 0:00:02]} Kxe6 {[%emt 0:00:02]} 43. Ke3 {[%emt 0:00:21]} Kd6 {[%emt 0:01:29]} 44. Kd4 {[%emt 0:00:41]} Kc6 {[%emt 0:16:19]} 45. b4 {[%emt 0:00:09]} Kb6 {[%emt 0:00:19]} 46. Re1 {[%emt 0:00:38]} a5 {[%emt 0:02:20]} 47. Re6+ {[%emt 0:00:27]} Kc7 {[%emt 0:00:18]} 48. Re7+ {[%emt 0:03:02]} Kb6 {[%emt 0:00:03]} 49. bxa5+ {[%emt 0:00:36]} Rxa5 {[%emt 0:00:04]} 50. Rxh7 {[%emt 0:00:49]} Ra4+ {[%emt 0:00:14]} 51. Ke5 {[%emt 0:03:01]} Ra3 {[%emt 0:00:37]} 52. Rh6 {[%emt 0:00:44]} Rxc3 {[%emt 0:00:13]} 53. Rxg6+ {[%emt 0:00:05]} Kc5 {[%emt 0:00:06]} 54. Bh3 {[%emt 0:01:27]} Rxf3 {[%emt 0:02:25]} 55. Bxf5 {[%emt 0:00:12]} d4 {[%emt 0:02:02]} 56. Rg8 {[%emt 0:06:20]} Re3+ {[%emt 0:03:46]} 57. Kf4 {[%emt 0:00:35]} Rf3+ {[%emt 0:00:25]} 58. Kg4 {[%emt 0:00:33]} Bd5 {[%emt 0:02:18]} 59. Rc8+ {[%emt 0:00:37]} Kb4 {[%emt 0:03:38]} 60. Rd8 {[%emt 0:00:23]} 1-0

[Event "POL-chT 2 Liga 2019"]
[Site "Poronin"]
[Date "2019.09.08"]
[Round "2.18"]
[White "Mackiewicz, Anna"]
[Black "Swiech, Joanna"]
[Result "1-0"]
[ECO "A01"]
[WhiteElo "1811"]
[BlackElo "2055"]
[Annotator "NA"]
[PlyCount "51"]
[EventDate "2019.09.07"]
[EventType "team-tourn"]
[EventCountry "POL"]
[SourceTitle "playchess.com"]
[Source "ChessBase"]
[SourceQuality "1"]
[TimeControl "40/5400+30:1800+30"]

1. b3 {[%emt 0:00:00]} e5 {[%emt 0:00:00]} 2. Bb2 {[%emt 0:00:00]} Nc6 {[%emt 0:00:00]} 3. e3 {[%emt 0:00:00]} Nf6 {[%emt 0:00:00]} 4. Bb5 {[%emt 0:00:36]} Bd6 {[%emt 0:00:36]} 5. Na3 {[%emt 0:08:14]} Na5 {[%emt 0:01:11]} 6. Nc4 {[%emt 0:04:03]} Nxc4 {[%emt 0:00:40]} 7. Bxc4 {[%emt 0:01:06]} O-O {[%emt 0:00:39]} 8. Nf3 {[%emt 0:00:47]} Qe7 {[%emt 0:01:47]} 9. O-O {[%emt 0:04:05]} c6 {[%emt 0:01:41]} 10. Nh4 {[%emt 0:09:02]} Bc7 {[%emt 0:04:47]} 11. Nf5 {[%emt 0:02:12]} Qd8 {[%emt 0:00:43]} 12. f4 {[%emt 0:04:45]} e4 {[%emt 0:20:37]} 13. Nxg7 {[%emt 0:18:29]} d5 {[%emt 0:01:59]} 14. Bxf6 {[%emt 0:01:18]} Qxf6 {[%emt 0:00:07]} 15. Nh5 {[%emt 0:00:09]} Qg6 {[%emt 0:01:15]} 16. Be2 {[%emt 0:00:08]} f5 {[%emt 0:00:45]} 17. c4 {[%emt 0:00:54]} Be6 {[%emt 0:03:21]} 18. cxd5 {[%emt 0:00:48]} cxd5 {[%emt 0:00:55]} 19. Kh1 {[%emt 0:09:00]} h6 {[%emt 0:03:20]} 20. Rg1 {[%emt 0:01:22]} Kh8 {[%emt 0:01:34]} 21. g4 {[%emt 0:01:52]} fxg4 {[%emt 0:01:36]} 22. Bxg4 {[%emt 0:00:30]} Bxg4 {[%emt 0:03:07]} 23. Rxg4 {[%emt 0:02:08]} Qe6 {[%emt 0:01:05]} 24. Rg7 {[%emt 0:05:29]} Bd8 {[%emt 0:02:14]} 25. Qg1 {[%emt 0:09:38]} Bf6 {[%emt 0:02:49]} 26. Qg6 1-0

[Event "POL-chT 2 Liga 2019"]
[Site "Poronin"]
[Date "2019.09.08"]
[Round "2.19"]
[White "Jedynak, Radoslaw"]
[Black "Marszalek, Maciej"]
[Result "1/2-1/2"]
[ECO "A77"]
[WhiteElo "2341"]
[BlackElo "2301"]
[Annotator "NA RC"]
[PlyCount "22"]
[EventDate "2019.09.07"]
[EventType "team-tourn"]
[EventCountry "POL"]
[SourceTitle "playchess.com"]
[Source "ChessBase"]
[SourceQuality "1"]
[TimeControl "40/5400+30:1800+30"]

1. d4 {[%emt 0:00:27]} Nf6 {[%emt 0:00:00]} 2. c4 {[%emt 0:00:23]} e6 {[%emt 0:00:10]} 3. Nc3 {[%emt 0:01:18]} c5 {[%emt 0:00:22]} 4. d5 {[%emt 0:00:20]} exd5 {[%emt 0:00:10]} 5. cxd5 {[%emt 0:00:19]} d6 {[%emt 0:00:07]} 6. Nf3 {[%emt 0:00:38]} g6 {[%emt 0:00:05]} 7. Nd2 {[%emt 0:00:34]} Bg7 {[%emt 0:01:46]} 8. e4 {[%emt 0:00:07]} O-O {[%emt 0:00:20]} 9. Be2 {[%emt 0:00:06]} Re8 {[%emt 0:00:43]} 10. O-O {[%emt 0:00:08]} Nbd7 {[%emt 0:00:48]} 11. a4 {[%emt 0:12:05]} a6 {[%emt 0:05:21]} 1/2-1/2

[Event "POL-chT 2 Liga 2019"]
[Site "Poronin"]
[Date "2019.09.08"]
[Round "2.21"]
[White "Mazurkiewicz, Michal"]
[Black "Jaskolka, Tomasz"]
[Result "1-0"]
[ECO "A04"]
[WhiteElo "2215"]
[BlackElo "2236"]
[Annotator "NA"]
[PlyCount "79"]
[EventDate "2019.09.07"]
[EventType "team-tourn"]
[EventCountry "POL"]
[SourceTitle "playchess.com"]
[Source "ChessBase"]
[SourceQuality "1"]
[TimeControl "40/5400+30:1800+30"]

1. Nf3 {[%emt 0:00:25]} e6 {[%emt 0:00:57]} 2. g3 {[%emt 0:00:15]} f5 {[%emt 0:00:04]} 3. Bg2 {[%emt 0:00:04]} Nf6 {[%emt 0:00:03]} 4. O-O {[%emt 0:00:06]} Be7 {[%emt 0:00:21]} 5. d3 {[%emt 0:01:57]} d6 {[%emt 0:00:11]} 6. Nbd2 {[%emt 0:00:35]} Nc6 {[%emt 0:00:17]} 7. e4 {[%emt 0:00:06]} fxe4 {[%emt 0:16:53]} 8. dxe4 {[%emt 0:00:02]} e5 {[%emt 0:00:06]} 9. c3 {[%emt 0:00:08]} O-O {[%emt 0:17:44]} 10. Qb3+ {[%emt 0:01:50]} Kh8 {[%emt 0:03:48]} 11. Ng5 {[%emt 0:00:44]} Na5 {[%emt 0:03:39]} 12. Qa4 {[%emt 0:05:37]} b6 {[%emt 0:02:57]} 13. b4 {[%emt 0:00:52]} Bd7 {[%emt 0:01:23]} 14. Qc2 {[%emt 0:00:27]} Nc6 {[%emt 0:02:01]} 15. Qb3 {[%emt 0:00:23]} Qc8 {[%emt 0:00:56]} 16. a4 {[%emt 0:29:14]} a5 {[%emt 0:03:58]} 17. b5 {[%emt 0:05:34]} Nd8 {[%emt 0:00:23]} 18. Ba3 {[%emt 0:01:00]} Nh5 {[%emt 0:06:39]} 19. Ngf3 {[%emt 0:07:22]} Bh3 {[%emt 0:20:49]} 20. Nxe5 {[%emt 0:11:15]} Bg5 {[%emt 0:08:47]} 21. f4 {[%emt 0:03:39]} Nxf4 {[%emt 0:02:05]} 22. gxf4 {[%emt 0:02:45]} Rxf4 {[%emt 0:01:01]} 23. Nef3 {[%emt 0:06:26]} Qg4 {[%emt 0:02:05]} 24. Ne1 {[%emt 0:00:44]} Ne6 {[%emt 0:01:08]} 25. Qd1 {[%emt 0:02:01]} Bxg2 {[%emt 0:02:04]} 26. Nxg2 {[%emt 0:00:33]} Rxf1+ {[%emt 0:00:21]} 27. Nxf1 {[%emt 0:00:08]} Qxe4 {[%emt 0:00:12]} 28. Ng3 {[%emt 0:01:30]} Qc4 {[%emt 0:01:08]} 29. Qe2 {[%emt 0:00:32]} Qxc3 {[%emt 0:00:53]} 30. Re1 {[%emt 0:01:07]} Qxa3 {[%emt 0:00:49]} 31. Qxe6 {[%emt 0:00:03]} Qc5+ {[%emt 0:01:13]} 32. Kh1 {[%emt 0:00:04]} g6 {[%emt 0:00:33]} 33. Ne4 {[%emt 0:00:12]} Qd4 {[%emt 0:00:28]} 34. Nxg5 {[%emt 0:00:28]} h6 {[%emt 0:00:29]} 35. Nf7+ {[%emt 0:01:05]} Kg7 {[%emt 0:00:05]} 36. Qe7 {[%emt 0:00:16]} Qf6 {[%emt 0:00:29]} 37. Nxd6+ {[%emt 0:00:28]} Qxe7 {[%emt 0:00:10]} 38. Rxe7+ {[%emt 0:00:02]} Kf6 {[%emt 0:00:12]} 39. Rxc7 {[%emt 0:00:07]} Rd8 {[%emt 0:00:07]} 40. Rc6 {[%emt 0:00:00]} 1-0